[Event "Finnish Senior Championship 2022"]
[Site "Helsinki"]
[Date "2022.04.22"]
[Round "8.1"]
[White "Lyly, Seppo"]
[Black "Binham, Timothy F."]
[Result "0-1"]
[ECO "C64"]
[WhiteElo "1908"]
[BlackElo "2275"]
[Annotator "TA"]
[PlyCount "142"]
[EventDate "2022.04.15"]
[EventType "swiss"]
[EventCountry "FIN"]
[SourceTitle "playchess.com"]
[Source "ChessBase"]
[SourceQuality "1"]
[TimeControl "40/5400+30:1800+30"]

{[%evp 9,142,0,0,0,9,-19,-9,-6,-10,-30,-32,-53,-28,-47,-27,-45,-37,-40,-54,-62,-42,-28,-20,-43,-22,-22,-21,-18,-17,-27,-15,-28,-9,-37,-28,-39,-42,-48,-39,-61,-41,-62,-54,-63,-63,-72,-46,-98,-105,-105,-105,-119,-118,-139,-110,-147,-111,-142,-111,-162,-143,-156,0,-177,-109,-110,-87,-104,-104,-147,-110,-114,-114,-147,-118,-118,-114,-118,-99,-118,-116,-118,-99,-117,-95,-117,-117,-132,-113,-120,-107,-131,-131,-121,-75,-126,-122,-120,-102,-130,-110,-107,-122,-126,-91,-85,-76,-76,-6,0,0,-8,0,0,-2,-58,0,0,0,-292,-293,-437,-405,-665,-661,-641,-604,-908,-854,-870,-858,-1134,-1050,-928,-916]} 1. e4 {[%emt 0:00:03]} e5 {[%emt 0:00:09]} 2. Nf3 {[%emt 0:00:10]} Nc6 {[%emt 0:00:06]} 3. Bb5 {[%emt 0:00:18]} Bc5 {[%emt 0:00:29]} 4. c3 {[%emt 0:00:43]} f5 {[%emt 0:00:43]} 5. d3 {[%emt 0:12:35]} fxe4 {[%emt 0:01:16]} 6. dxe4 {[%emt 0:00:18] C64: Ruy Lopez: Classical Defence (3...Bc5) except 4 0-0 Nf6.} Nf6 {[%emt 0:00:19]} 7. Qe2 {[%emt 0:00:33]} d6 {[%emt 0:00:20]} 8. b4 {[%emt 0:14:24] The position is equal.} Bb6 {[%emt 0:00:25]} 9. a4 {[%emt 0:00:14] [#]} a5 $146 {[%emt 0:03:51]} ({Predecessor:} 9... a6 10. Bc4 Qe7 11. Bg5 Nd8 12. Nbd2 Ne6 13. O-O h6 14. Be3 Bxe3 15. fxe3 g5 16. h3 Qg7 17. Nh2 h5 18. g3 g4 19. h4 Nf8 {½-½ (19) Wist,A (2068)-Woeber,F (2250) Bad Griesbach 2009}) 10. Be3 {[%emt 0:05:47]} Bxe3 {[%emt 0:03:48]} 11. Qxe3 {[%emt 0:00:47]} O-O {[%emt 0:00:39]} 12. Bc4+ {[%emt 0:01:52]} Kh8 {[%emt 0:00:12]} 13. b5 {[%emt 0:00:33]} Ne7 {[%emt 0:00:27]} 14. O-O {[%emt 0:05:22]} Qe8 {[%emt 0:04:05]} 15. Nbd2 {[%emt 0:03:48]} b6 {[%emt 0:01:25]} 16. Rfe1 {[%emt 0:02:36]} Qh5 {[%emt 0:18:47]} 17. Qg5 {[%emt 0:02:12]} h6 {[%emt 0:02:29]} 18. Qxh5 {[%emt 0:01:21]} Nxh5 {[%emt 0:00:39]} 19. g3 {[%emt 0:02:48]} Nf6 {[%emt 0:01:05]} 20. Kg2 {[%emt 0:01:46]} Bb7 {[%emt 0:00:34]} (20... g5 {seems wilder.} 21. h4 g4 22. Nh2 Kg7) 21. Bd3 {[%emt 0:02:00]} g6 {[%emt 0:04:09]} 22. h3 {[%emt 0:03:42]} Kg7 {[%emt 0:01:32]} 23. Bc2 {[%emt 0:04:24]} Nd7 {[%emt 0:01:05]} 24. Nb3 {[%emt 0:01:13]} Ng8 {[%emt 0:00:10]} 25. Rad1 {[%emt 0:00:57]} Rf7 {[%emt 0:01:46]} 26. Nfd2 {[%emt 0:05:49]} Raf8 {[%emt 0:00:57]} 27. f3 {[%emt 0:00:18]} Ne7 {[%emt 0:03:20]} 28. Re3 {[%emt 0:04:53]} (28. h4 $15) 28... g5 $17 {[%emt 0:01:03]} 29. Rde1 {[%emt 0:04:57]} Ng6 {[%emt 0:00:40]} 30. Bd1 {[%emt 0:00:44]} h5 {[%emt 0:00:59]} 31. Rf1 {[%emt 0:06:15]} Rf6 {[%emt 0:01:19]} 32. Be2 {[%emt 0:03:05]} Ne7 {[%emt 0:03:42]} 33. Rd3 {[%emt 0:01:37]} Rh8 {[%emt 0:04:00]} 34. Rh1 {[%emt 0:00:59]} (34. Kh2 $17) 34... Ng6 $19 {[%emt 0:00:19]} 35. Re3 {[%emt 0:00:42]} Ne7 {[%emt 0:00:55]} 36. Rd3 $1 {[%emt 0:00:19]} Nf8 {[%emt 0:00:15]} (36... h4 $19 37. g4 Ng6) 37. Re3 $17 {[%emt 0:01:10]} Ne6 {[%emt 0:01:49]} (37... h4 {seems wilder.} 38. g4 Nfg6 39. Bc4 Rhf8) 38. Rf1 {[%emt 0:00:40]} Ng6 {[%emt 0:01:26] Strongly threatening ...h4.} (38... h4 {is interesting.} 39. g4 Bc8 40. Bc4 Nf4+) 39. Bd1 {[%emt 0:01:57]} Kf7 {[%emt 0:00:20] Black is more active.} 40. Be2 {[%emt 0:00:41]} Ke7 {[%emt 0:38:56]} 41. Bd1 {[%emt 0:35:44]} Rg8 {[%emt 0:00:00]} 42. Kh2 {[%emt 0:00:00]} Rgf8 {[%emt 0:00:00]} 43. Be2 {[%emt 0:00:00]} Kd7 {[%emt 0:00:00]} (43... h4 {feels hotter.} 44. g4 Nef4 45. Bc4 Bc8) 44. Bd1 {[%emt 0:00:00]} Ne7 {[%emt 0:00:00]} (44... h4 {keeps more tension.} 45. g4 Nef4 46. Be2 Bc8) 45. Be2 {[%emt 0:00:00]} Rg6 {[%emt 0:00:00][%cal Bf6g6,Bg6g7,Bg7f7][%mdl 32]} (45... h4 {is more complex.} 46. g4 Nf4 47. Bc4 Kc8) 46. Bd1 {[%emt 0:00:00]} Ng8 {[%emt 0:00:00]} 47. Rd3 {[%emt 0:00:00]} Nf6 {[%emt 0:00:00]} 48. Be2 {[%emt 0:00:00]} Rg7 {[%emt 0:00:00]} 49. Re3 {[%emt 0:00:00]} Ke7 {[%emt 0:00:00]} 50. Bd1 {[%emt 0:00:00]} Rgf7 {[%emt 0:00:00]} 51. Be2 {[%emt 0:00:00]} Kd7 {[%emt 0:00:00]} ({Black should play} 51... Nd7 52. Bc4 g4) 52. Bd1 {[%emt 0:00:00]} (52. Bc4 $142) 52... Kd8 {[%emt 0:00:00]} 53. Be2 {[%emt 0:00:00]} Ke7 {[%emt 0:00:00]} 54. Bd1 {[%emt 0:00:00]} g4 {[%emt 0:00:00]} 55. h4 {[%emt 0:00:00] Prevents Ng5.} gxf3 {[%emt 0:00:00]} 56. Rexf3 {[%emt 0:00:00]} d5 {[%emt 0:01:04]} ({Stronger than} 56... Nxe4 57. Rxf7+ Rxf7 58. Rxf7+ Kxf7 59. Bxh5+ Ke7 60. Nxe4 Bxe4 61. Bd1 $15) 57. exd5 {[%emt 0:00:00]} Bxd5 {[%emt 0:00:05]} 58. Rf5 {[%emt 0:00:00][%csl LRe5,LRh5]} Ng4+ {[%emt 0:07:07]} (58... Bxb3 $17 59. Nxb3 Ne4 60. Rxf7+ Rxf7 61. Rxf7+ Kxf7 62. Bxh5+ Kg7) 59. Bxg4 $11 {[%emt 0:00:00]} hxg4 {[%emt 0:00:02]} 60. Rxf7+ {[%emt 0:00:00]} Rxf7 {[%emt 0:00:02]} 61. Rxf7+ {[%emt 0:00:00]} Kxf7 {[%emt 0:00:08][%mdl 4096] Endgame KBN-KNN} 62. c4 {[%emt 0:00:00]} ({White should try} 62. Kg1 $11) 62... Bb7 {[%emt 0:00:14]} (62... Bf3 $15 63. Nxf3 gxf3) 63. Nf1 {[%emt 0:00:00]} Nd4 {[%emt 0:01:49]} 64. Nxd4 $4 {[%emt 0:00:00][%mdl 8192]} (64. Nbd2 $1 $11 {and White has nothing to worry.}) 64... exd4 {[%emt 0:00:01] KB-KN} 65. Nd2 {[%emt 0:00:00]} (65. Kg1 $142 c5 66. Nd2) 65... Bf3 $19 {[%emt 0:00:29] [#] White must now prevent ...Bd1.} 66. Kg1 {[%emt 0:07:28]} (66. Nb3 $142 d3 67. Nd2) 66... Bd1 {[%emt 0:00:56] Black is clearly winning.} 67. Kf2 {[%emt 0:01:48]} Bxa4 {[%emt 0:00:12]} 68. Nb1 {[%emt 0:01:43]} Bc2 {[%emt 0:03:17]} 69. Na3 {[%emt 0:00:14]} Be4 {[%emt 0:00:30] [#] And now ...Ke6 would win.} 70. Ke1 {[%emt 0:00:12]} Ke6 {[%emt 0:00:20] Hoping for ...Bg6.} 71. Kd2 {[%emt 0:00:07]} Kd6 {[%emt 0:00:37] Weighted Error Value: White=0.14 (very precise) /Black=0.18 (very precise)} 0-1

[Event "Finnish Senior Championship 2022"]
[Site "Helsinki"]
[Date "2022.04.22"]
[Round "8.2"]
[White "Smeds, Tom"]
[Black "Kivipelto, Kaj"]
[Result "0-1"]
[ECO "E67"]
[WhiteElo "1863"]
[BlackElo "2129"]
[Annotator "TA"]
[PlyCount "92"]
[EventDate "2022.04.15"]
[EventType "swiss"]
[EventCountry "FIN"]
[SourceTitle "playchess.com"]
[Source "ChessBase"]
[SourceQuality "1"]
[TimeControl "40/5400+30:1800+30"]

{[%evp 20,92,25,19,40,15,0,0,0,0,9,-17,-8,-12,0,-12,0,-37,-16,-33,-20,-45,-14,-100,-21,-97,-81,-99,-81,-91,-116,-134,-120,-117,-118,-135,-112,-173,-115,-102,0,-153,-102,-99,-102,-100,-108,-143,-104,-553,-599,-564,-570,-537,-566,-558,-468,-937,-918,-1434,-253,-299,0,-1434,-1388,-1154,-954,-29983,-2633,-29986,-29984,-29994,-29995,-29995,-29996]} 1. Nf3 {[%emt 0:00:04]} Nf6 {[%emt 0:00:26]} 2. g3 {[%emt 0:00:10]} g6 {[%emt 0:00:10]} 3. b3 {[%emt 0:00:22]} Bg7 {[%emt 0:00:39]} 4. Bb2 {[%emt 0:00:07]} O-O {[%emt 0:00:34]} 5. Bg2 {[%emt 0:00:11]} d6 {[%emt 0:01:14]} 6. d4 {[%emt 0:00:26]} c6 {[%emt 0:05:13]} 7. O-O {[%emt 0:00:16]} Nbd7 {[%emt 0:01:17]} 8. c4 {[%emt 0:02:53]} Qc7 {[%emt 0:00:18]} 9. Nc3 {[%emt 0:00:27]} Re8 {[%emt 0:00:43]} 10. e3 {[%emt 0:04:49]} e5 {[%emt 0:04:37]} 11. Qc2 {[%emt 0:07:20]} Nf8 {[%emt 0:07:39] E67: King's Indian: Fianchetto: 6...Nbd7.} 12. dxe5 {[%emt 0:02:32]} dxe5 {[%emt 0:00:09] [#]} 13. Rac1 $146 {[%emt 0:01:15]} ({Predecessor:} 13. Rad1 h6 14. Nd2 Ne6 15. b4 a5 16. a3 axb4 17. axb4 Bd7 18. c5 Rad8 19. Nc4 Bf8 {0-1 (61) Prohorov,O (2086)-Mihok,O (2540) Chess.com INT 2020}) 13... Bf5 {[%emt 0:11:57] The position is equal.} 14. e4 {[%emt 0:04:17]} Bd7 {[%emt 0:01:01]} 15. Qb1 {[%emt 0:03:25]} Rad8 {[%emt 0:00:53]} 16. Rcd1 {[%emt 0:00:25]} Nh5 {[%emt 0:06:29]} 17. Qa1 {[%emt 0:10:58]} f6 {[%emt 0:00:26]} 18. Nh4 {[%emt 0:02:57]} Bh6 {[%emt 0:05:31]} 19. h3 {[%emt 0:04:05]} Ne6 {[%emt 0:03:36]} 20. Ne2 {[%emt 0:04:31]} c5 {[%emt 0:03:34]} 21. Bf3 {[%emt 0:03:34] [#]} (21. Kh2 $11) 21... Nhg7 {[%emt 0:08:36]} (21... Nd4 $1 $17 22. Bxh5 gxh5) 22. Bg4 {[%emt 0:04:13]} (22. Nc3 $11 {keeps the balance.} Nd4 23. Nd5) 22... Nd4 $17 {[%emt 0:03:44]} 23. Nc3 {[%emt 0:02:22]} f5 {[%emt 0:03:41] Black is more active.} 24. Nd5 {[%emt 0:00:57]} Qd6 {[%emt 0:01:14]} 25. Bf3 {[%emt 0:01:42]} fxe4 {[%emt 0:02:04]} 26. Bxe4 {[%emt 0:00:43]} Bxh3 {[%emt 0:00:21]} 27. Rfe1 {[%emt 0:00:53]} Rf8 {[%emt 0:02:29]} 28. Bc1 {[%emt 0:01:37]} (28. Rd3 $17) 28... Bxc1 {[%emt 0:00:35]} (28... g5 $19 29. Ng2 Ne8) 29. Qxc1 {[%emt 0:00:11]} Bg4 {[%emt 0:02:34]} ({Black should try} 29... Bf5 $17 {Hoping for ...Bxe4.} 30. Nxf5 gxf5) 30. f3 $2 {[%emt 0:04:42]} (30. Rxd4 $1 $11 cxd4 31. Qg5) 30... Bf5 {[%emt 0:02:27]} ({Weaker is} 30... Nxf3+ 31. Nxf3 Bxf3 32. Bxf3 Rxf3 33. Qg5 $17) (30... Bxf3 $142 31. Nxf3 Rxf3) 31. Kg2 {[%emt 0:01:41]} Rf7 {[%emt 0:02:38]} 32. Qh6 {[%emt 0:02:10]} Bxe4 {[%emt 0:00:36]} 33. fxe4 {[%emt 0:00:09]} Qe6 {[%emt 0:05:41] Threatens to win with ...Rdf8. The board is on fire.} 34. Rxd4 $4 {[%emt 0:15:40][%mdl 8192]} cxd4 $19 {[%emt 0:00:26]} 35. Nf3 {[%emt 0:00:07] [#]} Rxf3 {[%emt 0:01:40]} 36. Kxf3 {[%emt 0:01:35]} Rf8+ {[%emt 0:00:15]} 37. Kg2 {[%emt 0:00:15] Strongly threatening Rh1.} Qf7 {[%emt 0:01:36]} 38. Qd2 {[%emt 0:01:34] Inhibits Qf2+.} (38. Rg1 $142 Qf2+ 39. Kh1 Qf3+ 40. Kh2 Qxe4 41. Qd2) 38... Qf3+ {[%emt 0:01:08]} 39. Kh3 {[%emt 0:00:15]} Qh5+ $2 {[%emt 0:00:33]} (39... Ne6 {( -> ...Qh5+)} 40. Qh6 Nf4+ 41. Nxf4 Rxf4) 40. Kg2 {[%emt 0:00:10]} Qf3+ $2 $40 {[%emt 0:00:17][%mdl 128] Black is up to no good.} (40... Ne6 41. Qe2 Qxe2+ 42. Rxe2 Ng5) 41. Kh3 $1 {[%emt 0:30:06]} Ne6 {[%emt 0:34:56]} 42. Qh6 {[%emt 0:01:51]} Rf7 {[%emt 0:02:21] White must now prevent ...Nc5.} 43. Qd2 {[%emt 0:02:04]} Kg7 {[%emt 0:00:42]} (43... Qh5+ $142 44. Kg2 Ng5 45. Rh1 Qf3+ 46. Kh2 Qg4 47. Qxg5 Qxg5 48. Kg2 Qg4 49. Rh6 Qxe4+ 50. Kg1 Qe1+ 51. Kh2 Rf2+ 52. Kh3 Qh1+ 53. Kg4 Qxh6 54. Ne7+ Kh8 55. Nxg6+ Qxg6+ 56. Kh4 Rh2#) 44. b4 {[%emt 0:04:20]} h6 {[%emt 0:03:08] Black mates.} 45. c5 {[%emt 0:01:01]} Ng5+ {[%emt 0:00:58]} 46. Kh2 {[%emt 0:00:07]} Qh5+ {[%emt 0:00:36] Weighted Error Value: White=0.94/Black=0.72} 0-1

[Event "Finnish Senior Championship 2022"]
[Site "Helsinki"]
[Date "2022.04.22"]
[Round "8.3"]
[White "Terasalo, Kari"]
[Black "Hietala, Pekka"]
[Result "0-1"]
[ECO "C01"]
[WhiteElo "1775"]
[BlackElo "1925"]
[Annotator "TA"]
[PlyCount "74"]
[EventDate "2022.04.15"]
[EventType "swiss"]
[EventCountry "FIN"]
[SourceTitle "playchess.com"]
[Source "ChessBase"]
[SourceQuality "1"]
[TimeControl "40/5400+30:1800+30"]

{[%evp 9,74,0,22,-4,0,-20,0,0,4,-31,-8,-21,-18,-31,-22,-31,-2,-4,-3,0,-7,-43,-4,-6,0,0,62,11,15,-21,-17,-22,-35,-33,31,42,43,43,69,0,0,0,0,0,-17,-34,-34,-36,-33,-35,-16,-40,-34,-498,0,-901,-894,-1977,-1855,-2307,-2189,-2007,-1154,-29970,-29969,-2965,-2634]} 1. e4 {[%emt 0:02:30]} e6 {[%emt 0:00:12]} 2. Nf3 {[%emt 0:00:26]} d5 {[%emt 0:00:12]} 3. exd5 {[%emt 0:00:54]} exd5 {[%emt 0:00:17]} 4. d4 {[%emt 0:01:08]} Bd6 {[%emt 0:02:17]} 5. Be2 {[%emt 0:01:00]} Ne7 {[%emt 0:03:13]} 6. Bg5 {[%emt 0:01:24] C01: French: Exchange Variation.} f6 {[%emt 0:00:53]} 7. Bh4 {[%emt 0:01:24]} Nbc6 {[%emt 0:04:40]} 8. c3 {[%emt 0:00:22] [#] The position is equal.} Bf5 $146 {[%emt 0:03:33]} ({Predecessor:} 8... Be6 9. Bg3 Qd7 10. Bxd6 Qxd6 11. Nbd2 Ng6 12. g3 Bf5 13. O-O O-O-O 14. Re1 h5 {0-1 (30) Divis,J (1570)-Freeland,A (1988) Trebic 2017}) 9. Nfd2 {[%emt 0:03:56]} Qd7 {[%emt 0:03:34]} 10. Nb3 {[%emt 0:01:19]} b6 {[%emt 0:02:16]} 11. N1d2 {[%emt 0:01:17]} O-O {[%emt 0:01:39]} 12. O-O {[%emt 0:01:45]} Ng6 {[%emt 0:08:13]} 13. Bg3 {[%emt 0:00:35]} Nf4 {[%emt 0:00:51]} 14. Bxf4 {[%emt 0:04:07]} (14. Bb5 {is interesting.} Bg6 15. Bxf4 Bxf4 16. Qf3) 14... Bxf4 {[%emt 0:00:10]} 15. Nf3 {[%emt 0:00:09]} g5 {[%emt 0:03:14]} 16. g3 {[%emt 0:03:17] [#]} Bh3 $1 {[%emt 0:01:47]} 17. Re1 {[%emt 0:02:03]} Qg7 {[%emt 0:04:10]} 18. Kh1 {[%emt 0:01:32]} (18. c4 $14) 18... Bd6 $11 {[%emt 0:00:21]} 19. Bf1 {[%emt 0:00:55]} Bg4 {[%emt 0:01:41]} 20. Bg2 {[%emt 0:00:42]} Rad8 {[%emt 0:07:32]} 21. Nbd2 {[%emt 0:00:59]} f5 {[%emt 0:02:21]} ({Black should play} 21... Ne7 $15) 22. Qa4 $14 {[%emt 0:01:14]} Ne7 {[%emt 0:05:06]} 23. Ne5 {[%emt 0:01:08]} (23. Qxa7 Ra8 24. Qb7 Kh8 $11) 23... Bh5 {[%emt 0:00:50]} 24. Ndf3 {[%emt 0:02:59]} ({Much worse is} 24. Qxa7 Bxe5 25. dxe5 Nc6 $11) (24. Nc6 $14) 24... g4 $11 {[%emt 0:01:08]} 25. Nh4 {[%emt 0:02:43]} f4 {[%emt 0:04:08]} 26. Nc6 {[%emt 0:06:11] Pair of Knights!} ({Don't blunder} 26. Qxa7 $2 f3 27. Bxf3 (27. Bf1 $2 Ra8 $19) 27... gxf3 $19) 26... f3 $36 {[%emt 0:01:04][%mdl 2048] Black has some pressure.} 27. Nxe7+ {[%emt 0:01:46]} Bxe7 {[%emt 0:00:18]} 28. Bf1 {[%emt 0:00:40]} Bxh4 {[%emt 0:07:54]} 29. gxh4 {[%emt 0:03:09]} Qf6 {[%emt 0:00:44]} 30. Re5 {[%emt 0:03:05]} Qxh4 {[%emt 0:00:34] aiming for ...Rd6.} 31. Kg1 $2 {[%emt 0:02:54][%mdl 8192] [#]} (31. Qc6 $1 $15 Bg6 32. Kg1) 31... Be8 $2 {[%emt 0:03:08]} ({Better is} 31... Rd6 $1 $19 {[%cal Rd6h6]} 32. Qd1 Rh6) 32. Qb4 $2 {[%emt 0:03:12][%mdl 8192] [#]} (32. Qxa7 $11 Rf7 33. Qb7) 32... Rd6 $1 $19 {[%emt 0:00:58][%cal Bd8d6,Bd6h6,Bh6g6][%mdl 32] Hoping for ...Rh6.} 33. Qb3 {[%emt 0:05:29]} Rh6 {[%emt 0:08:18][%csl Gh6][%cal Rh4h2]} 34. h3 {[%emt 0:00:22]} c6 {[%emt 0:08:01]} 35. Qc2 {[%emt 0:05:09]} Rg6 {[%emt 0:02:58] ( -> ...g3)} 36. Rf5 {[%emt 0:13:07]} gxh3+ {[%emt 0:03:29]} 37. Kh1 {[%emt 0:00:40]} Qg4 {[%emt 0:00:41] Weighted Error Value: White=1.01/Black=0.36} 0-1

[Event "Finnish Senior Championship 2022"]
[Site "Helsinki"]
[Date "2022.04.22"]
[Round "8.4"]
[White "Aakio, Seppo"]
[Black "Raitanen, Markku"]
[Result "1-0"]
[ECO "B74"]
[WhiteElo "2051"]
[BlackElo "1813"]
[Annotator "TA"]
[PlyCount "93"]
[EventDate "2022.04.15"]
[EventType "swiss"]
[EventCountry "FIN"]
[SourceTitle "playchess.com"]
[Source "ChessBase"]
[SourceQuality "1"]
[TimeControl "40/5400+30:1800+30"]

{[%evp 21,93,-22,39,-31,0,0,-1,-7,0,-4,0,0,-3,-45,-49,-83,-33,-26,-6,-56,-4,-29,-36,-29,-27,-23,31,23,43,22,68,76,109,37,49,30,28,31,32,0,70,49,91,91,91,91,98,90,140,94,110,106,108,87,447,447,670,210,259,0,670,643,1338,1323,1058,973,1494,1383,3149,3183,2671,1269,2574,2483]} 1. e4 {[%emt 0:01:42]} c5 {[%emt 0:00:14]} 2. Nf3 {[%emt 0:00:31][%cal Bg1f3,Bf3d4,Bd4b3][%mdl 32]} d6 {[%emt 0:00:17]} 3. d4 {[%emt 0:00:47]} cxd4 {[%emt 0:00:20]} 4. Nxd4 {[%emt 0:00:06]} Nf6 {[%emt 0:00:13]} 5. Nc3 {[%emt 0:00:32]} g6 {[%emt 0:00:17]} 6. Be2 {[%emt 0:01:04]} Bg7 {[%emt 0:00:17]} 7. O-O {[%emt 0:02:32]} O-O {[%emt 0:01:21]} 8. Be3 {[%emt 0:01:47]} Nc6 {[%emt 0:01:02]} 9. Nb3 {[%emt 0:02:39]} Be6 {[%emt 0:01:07]} 10. f4 {[%emt 0:02:35]} Rc8 {[%emt 0:02:12]} 11. Bf3 {[%emt 0:14:26]} a6 {[%emt 0:05:06]} (11... Bc4 $11) 12. h3 {[%emt 0:26:07] [#] B74: Sicilian Dragon: Classical System with 9 Nb3.} ({Better is} 12. Nd5 $14) 12... Na5 $146 {[%emt 0:03:22]} (12... Bc4 $5 {[%cal Rc4f1]}) ({Predecessor:} 12... b5 13. Qd2 Na5 14. Nxa5 Qxa5 15. a3 Rfd8 16. Rf2 b4 17. Nd1 Rc4 18. Qd3 d5 19. exd5 Bxd5 20. Bxd5 Qxd5 21. Qxd5 Nxd5 {1-0 (63) Martin,L (2196)-Brown,T (2079) England 2019}) 13. Nxa5 {[%emt 0:01:09]} Qxa5 {[%emt 0:00:39]} 14. Rf2 {[%emt 0:07:40] The position is equal.} Nd7 {[%emt 0:06:42]} 15. Bd4 {[%emt 0:02:06]} Rc7 {[%emt 0:05:36]} 16. Bxg7 {[%emt 0:00:51]} Kxg7 {[%emt 0:00:12]} 17. Bg4 {[%emt 0:03:04]} Qb6 {[%emt 0:06:17]} 18. Rb1 {[%emt 0:02:08] [#]} Nf6 {[%emt 0:11:23]} (18... Bxg4 $1 $17 19. hxg4 Nf6) 19. Bf3 $15 {[%emt 0:03:09]} Rfc8 {[%emt 0:06:40]} (19... Qe3 $5 {[%cal Re3f4]}) 20. g4 {[%emt 0:02:43]} (20. Qe1 $11) 20... Qc5 {[%emt 0:08:47]} (20... h5 $15 21. gxh5 Rc4) 21. Kg2 {[%emt 0:04:19]} b5 {[%emt 0:01:59]} 22. a3 {[%emt 0:01:45]} Qe3 {[%emt 0:05:34]} 23. f5 {[%emt 0:03:19]} gxf5 {[%emt 0:04:23]} (23... Bd7 $11) 24. exf5 $14 {[%emt 0:01:51]} Bc4 {[%emt 0:08:39]} 25. Qg1 {[%emt 0:01:35]} (25. Qe1 $5 {[%cal Re1e3]} Qh6 26. Ne4 Nxe4 27. Qxe4 $14) 25... d5 {[%emt 0:04:13]} (25... h5 $11) 26. Re1 {[%emt 0:01:15]} Qc5 {[%emt 0:01:48]} 27. g5 {[%emt 0:00:51]} (27. Kh1 $16) 27... Ne4 {[%emt 0:05:03]} 28. Nxe4 {[%emt 0:01:32]} dxe4 {[%emt 0:00:55]} 29. Bxe4 {[%emt 0:00:02] Threatens to win with Rd2.} Bd5 {[%emt 0:01:57]} 30. c3 {[%emt 0:07:15]} Rd7 {[%emt 0:03:21]} (30... Bxe4+ $1 $11 31. Rxe4 Qd5) 31. Kh2 {[%emt 0:01:04]} Qd6+ {[%emt 0:00:39]} 32. Qg3 {[%emt 0:00:19]} Qxg3+ {[%emt 0:02:25]} 33. Kxg3 {[%emt 0:00:01] Hoping for f6+.} Bxe4 {[%emt 0:02:04]} 34. Rxe4 $16 {[%emt 0:00:01][%mdl 4096] Endgame KRR-KRR} Kf8 {[%emt 0:00:35]} (34... h6 $142) 35. Rfe2 {[%emt 0:01:16]} ({White should try} 35. Kg4) 35... Rc5 {[%emt 0:00:32]} 36. Kg4 {[%emt 0:00:48]} Rdd5 {[%emt 0:00:50]} 37. Rf2 {[%emt 0:01:25]} Kg7 $2 {[%emt 0:00:42][%mdl 8192]} (37... e6 $16 {is more resistant.} 38. fxe6 Rxg5+ 39. Kh4 Rgf5 40. Rxf5 Rxf5) 38. Rxe7 $18 {[%emt 0:00:55]} Rc4+ {[%emt 0:00:24]} (38... a5 $142 39. h4 h5+ 40. gxh6+ Kxh6 41. Rxf7 Rc6) 39. Kg3 $2 {[%emt 0:01:33]} (39. Kh5 {f6+ is the strong threat.} Rc8 40. f6+ Kg8 41. Ra7) 39... Rcc5 {[%emt 0:00:38]} 40. Kg4 $2 {[%emt 0:00:47]} (40. Ra7) 40... Rc4+ {[%emt 0:00:39]} 41. Kh5 {[%emt 0:13:35] [#] aiming for f6+. White is clearly winning.} Rcc5 {[%emt 0:02:47]} 42. f6+ {[%emt 0:00:16]} Kf8 {[%emt 0:00:48]} 43. h4 {[%emt 0:00:02]} Re5 {[%emt 0:02:20]} 44. Ra7 {[%emt 0:00:26] Black must now prevent Rd2.} Rc6 {[%emt 0:01:20]} 45. Ra8+ {[%emt 0:01:08]} Re8 {[%emt 0:01:35]} 46. Rxe8+ {[%emt 0:00:03]} Kxe8 {[%emt 0:00:10]} 47. Kh6 {[%emt 0:00:03] Weighted Error Value: White=0.41/Black=0.50} 1-0

[Event "Finnish Senior Championship 2022"]
[Site "Helsinki"]
[Date "2022.04.23"]
[Round "9.1"]
[White "Binham, Timothy F."]
[Black "Smeds, Tom"]
[Result "1-0"]
[ECO "B15"]
[WhiteElo "2275"]
[BlackElo "1863"]
[Annotator "TA"]
[PlyCount "39"]
[EventDate "2022.04.15"]
[EventType "swiss"]
[EventCountry "FIN"]
[SourceTitle "playchess.com"]
[Source "ChessBase"]
[SourceQuality "1"]
[TimeControl "40/5400+30:1800+30"]

{[%evp 10,39,68,66,69,15,41,38,47,25,79,68,80,85,62,86,86,64,63,56,86,87,143,104,245,253,440,427,434,456,594,566]} 1. d4 {[%emt 0:00:13]} g6 {[%emt 0:00:27]} 2. e4 {[%emt 0:00:20]} Bg7 {[%emt 0:00:06]} 3. Nc3 {[%emt 0:00:07]} c6 {[%emt 0:00:08]} 4. f4 {[%emt 0:02:23]} d5 {[%emt 0:00:09]} 5. e5 {[%emt 0:00:07]} h5 {[%emt 0:00:33]} 6. Be3 {[%emt 0:01:41]} Nh6 {[%emt 0:00:24] B15: Caro-Kann: 3 Nc3: 3...g6 and 3...dxe4 4 Nxe4 Nf6 5 Nxf6+ exf6.} 7. Nge2 {[%emt 0:03:59] [#]} ({Better is} 7. h3 $14) 7... Bf5 $146 {[%emt 0:04:16]} ({Predecessor:} 7... Bg4 8. Qd2 Nd7 9. Nc1 h4 10. h3 Bh5 11. Bd3 e6 12. O-O Bf8 13. Nb3 Be7 14. a4 {0-1 (63) Hector,J (2470)-Petursson,M (2560) Aarhus 1993}) 8. Qd2 {[%emt 0:02:17]} e6 {[%emt 0:00:29] White is slightly better.} 9. Ng3 {[%emt 0:04:38]} O-O {[%emt 0:00:16]} (9... Bf8 $11 {remains equal.}) 10. Nxf5 {[%emt 0:01:33]} Nxf5 {[%emt 0:00:09] [#]} 11. Bf2 $1 {[%emt 0:00:15]} Nd7 {[%emt 0:00:58]} 12. Bd3 {[%emt 0:05:33]} b5 {[%emt 0:01:33]} 13. a4 {[%emt 0:02:30][%cal Ba2a4,Ba4b5][%mdl 32]} a6 {[%emt 0:03:43]} 14. O-O {[%emt 0:01:03]} Qe7 {[%emt 0:00:43]} 15. Ne2 {[%emt 0:08:48]} c5 {[%emt 0:08:31]} (15... Rfc8 $142) 16. axb5 {[%emt 0:02:15]} c4 {[%emt 0:01:17] A mistake that costs the game.} (16... axb5 $16 {might work better.} 17. Bxb5 c4) 17. Bxf5 $18 {[%emt 0:00:34]} exf5 {[%emt 0:00:33] [#]} (17... gxf5 {was necessary.} 18. bxa6 (18. Rxa6 Rxa6 19. bxa6 Ra8 $18) 18... Rfb8) 18. Rxa6 {[%emt 0:00:37] White is clearly winning.} Rab8 {[%emt 0:01:13]} 19. Nc3 {[%emt 0:00:53]} Qb4 {[%emt 0:01:50]} 20. Ra4 {[%emt 0:00:28] Weighted Error Value: White=0.11 (very precise) /Black=0.51} 1-0